bitfinex-derivatives/quotes_SOLF0:USTF0_20240827
["timestamp","ask_amount","ask_price","bid_price","bid_amount"]
[1724753484601,22.9287,155.8,155.79,0.0426622]
[1724753489309,3.2087,155.8,155.79,0.0426622]
[1724753491206,0.04052439,155.82,155.79,0.0426622]
[1724753491819,3.2087,155.8,155.79,0.0426622]
[1724753492312,22.9287,155.8,155.79,0.0426622]
[1724753492915,3.2087,155.8,155.79,0.0426622]
[1724753494008,19.76052439,155.82,155.79,0.0426622]
[1724753494215,3.2085,155.81,155.79,0.0426622]
[1724753494405,0.04052439,155.82,155.79,0.0426622]
[1724753495712,3.24902439,155.82,155.79,0.0426622]
[1724753495912,0.04052439,155.82,155.79,0.0426622]
[1724753496320,3.2087,155.81,155.79,0.0426622]
[1724753497613,0.04052439,155.82,155.79,0.0426622]
[1724753498421,0.04052439,155.82,155.79,3.2515622]
[1724753498823,3.24882439,155.82,155.79,3.2515622]
[1724753499023,3.24882439,155.82,155.79,0.0426622]
[1724753499218,19.72,155.8,155.79,0.0426622]
[1724753500324,22.9287,155.8,155.79,0.0426622]
[1724753503327,3.2101,155.74,155.71,5.04]
[1724753503525,3.2101,155.74,155.7,3.2106]
[1724753503831,3.2101,155.74,155.69,5.04]
[1724753504530,0.04171128,155.73,155.7,0.04468077]
[1724753504830,0.04171128,155.73,155.71,3.2105]
[1724753505825,0.04171128,155.73,155.7,0.04468077]
[1724753507228,0.04171128,155.73,155.72,3.2104]
[1724753507536,26.1342,155.88,155.72,19.72]
[1724753507537,19.72,155.82,155.72,19.72]
[1724753507735,19.72,155.82,155.73,2.5655]
[1724753508034,19.72,155.82,155.73,5.70178642]
[1724753508230,19.72,155.82,155.73,2.5655]
[1724753508428,0.04831473,155.79,155.76,0.04765084]
[1724753508628,3.25721473,155.79,155.76,6.49447672]
[1724753508825,3.25721473,155.79,155.76,3.25705084]
[1724753509229,3.25721473,155.79,155.76,6.49865073]
[1724753510529,3.2093,155.77,155.76,0.04765084]
[1724753511124,19.76831473,155.79,155.76,0.04765084]
[1724753511634,3.2093,155.77,155.76,0.04765084]
[1724753516237,0.04831473,155.79,155.76,0.04765084]
[1724753516826,3.25741473,155.79,155.76,0.04765084]
[1724753517733,3.2092,155.78,155.76,0.04765084]
[1724753519436,3.25721473,155.79,155.76,3.25715084]
[1724753520139,3.2091,155.78,155.76,0.04765084]
[1724753521036,3.25731473,155.79,155.76,3.25715084]
[1724753521939,3.2091,155.78,155.76,3.25715084]
[1724753522132,3.2091,155.78,155.76,0.04765084]
[1724753523342,3.25731473,155.79,155.76,3.25715084]
[1724753525445,3.2091,155.78,155.76,0.04765084]
[1724753526240,0.04831473,155.79,155.76,0.04765084]
[1724753526241,3.25731473,155.79,155.76,3.25715084]
[1724753528746,3.25731473,155.79,155.77,3.2092]
[1724753528747,0.04831473,155.79,155.77,3.2092]
[1724753529050,0.04831473,155.79,155.76,0.04765084]
[1724753529246,0.04831473,155.79,155.77,3.2091]
[1724753529451,0.04831473,155.79,155.76,0.04765084]
[1724753529849,0.04831473,155.79,155.78,3.2091]
[1724753530650,0.04831473,155.79,155.76,1.33285084]
[1724753531249,0.04831473,155.79,155.77,3.2093]
[1724753531445,0.04831473,155.79,155.76,0.04765084]
[1724753532950,3.2093,155.77,155.76,0.04765084]
[1724753533952,3.2092,155.78,155.76,0.04765084]
[1724753534254,0.04831473,155.79,155.76,0.04765084]
[1724753534956,3.2093,155.78,155.76,0.04765084]
[1724753535646,3.25741473,155.79,155.76,3.25715084]
[1724753535851,3.25741473,155.79,155.76,0.04765084]
[1724753538651,0.04831473,155.79,155.76,0.04765084]
[1724753539455,3.2093,155.77,155.76,0.04765084]
[1724753541250,22.9293,155.77,155.76,0.04765084]
[1724753542950,3.2093,155.77,155.76,0.00255084]
[1724753543144,3.2102,155.73,155.68,7.381]
[1724753543746,3.21,155.74,155.7,3.2106]
[1724753544150,3.25489995,155.74,155.7,3.2561146]
[1724753544357,3.2102,155.73,155.7,3.2561146]
[1724753545762,0.04489995,155.74,155.71,3.2105]
[1724753547457,3.25479995,155.74,155.71,3.2105]
[1724753547865,3.2102,155.73,155.7,3.2562146]
[1724753548056,0.04489995,155.74,155.7,3.2562146]
[1724753548667,3.25499995,155.74,155.7,3.2562146]
[1724753548865,0.04489995,155.74,155.7,3.2562146]
[1724753549064,0.04489995,155.74,155.7,0.0455146]
[1724753551167,0.04489995,155.74,155.7,3.2562146]
[1724753551366,0.04489995,155.74,155.7,0.0455146]
[1724753551667,0.04489995,155.74,155.72,3.2103]
[1724753552055,0.04489995,155.74,155.7,0.0455146]
[1724753553371,3.25489995,155.74,155.71,3.2106]
[1724753554264,0.04489995,155.74,155.73,3.2102]
[1724753554463,0.04489995,155.74,155.73,6.44622575]
[1724753555070,0.04489995,155.74,155.73,3.2102]
[1724753555261,25.68,155.95,155.75,3.2097]
[1724753555466,24.58,155.83,155.75,3.2097]
[1724753555866,3.2092,155.78,155.73,22.91685568]
[1724753556066,3.2092,155.78,155.74,3.2098]
[1724753556263,3.2540997,155.78,155.74,3.25103985]
[1724753556466,0.0448997,155.78,155.74,3.25103985]
[1724753556772,3.2095,155.77,155.74,0.04123985]
[1724753557162,0.0448997,155.78,155.74,0.04123985]
[1724753557362,3.2540997,155.78,155.74,3.25113985]
[1724753557767,0.0448997,155.78,155.74,0.04123985]
[1724753558369,0.0448997,155.78,155.74,3.19177244]
[1724753559777,3.2541997,155.78,155.74,6.40157244]
[1724753560665,0.0448997,155.78,155.74,3.19177244]
[1724753560973,0.0448997,155.78,155.74,4.45357244]
[1724753561271,0.0448997,155.78,155.75,19.72]
[1724753561669,0.0448997,155.78,155.76,3.2094]
[1724753561967,0.0448997,155.78,155.76,7.89]
[1724753562568,0.0448997,155.78,155.77,3.2093]
[1724753564476,0.0448997,155.78,155.74,5.67937244]
[1724753564675,0.0448997,155.78,155.75,7.89]
[1724753565379,0.0448997,155.78,155.76,3.2095]
[1724753566680,0.0448997,155.78,155.77,3.2093]
[1724753566880,0.0448997,155.78,155.77,11.0993]
[1724753568979,0.0448997,155.78,155.77,3.2093]
[1724753570389,6.0845,155.86,155.77,7.89]
[1724753570390,7.89,155.85,155.77,7.89]
[1724753570683,7.89,155.85,155.79,7.89]
[1724753571181,3.2081,155.83,155.8,0.04268682]
[1724753571785,3.2081,155.83,155.8,3.25138682]
[1724753571976,3.25583921,155.84,155.8,0.04268682]
[1724753572580,0.04783921,155.84,155.8,0.04268682]
[1724753572779,0.04783921,155.84,155.82,3.2082]
[1724753572983,0.04783921,155.84,155.8,7.93268682]
[1724753573386,0.04783921,155.84,155.81,7.89]
[1724753573884,0.04783921,155.84,155.82,3.22675564]
[1724753574687,0.04783921,155.84,155.81,1.2493]
[1724753574884,0.04783921,155.84,155.82,11.0982]
[1724753575680,0.04783921,155.84,155.83,3.17587304]
[1724753576782,0.04783921,155.84,155.82,3.2082]
[1724753576982,0.04783921,155.84,155.83,3.24485795]
[1724753577287,0.04783921,155.84,155.83,3.2081]
[1724753577487,0.04783921,155.84,155.83,6.33841091]
[1724753578290,6.7539,155.94,155.85,3.2077]
[1724753578590,7.89,155.91,155.84,7.89]
[1724753578785,7.89,155.91,155.84,11.0977]
[1724753578995,7.89,155.91,155.84,7.89]
[1724753579296,3.2072,155.88,155.86,0.04778058]
[1724753580382,3.24939978,155.89,155.86,3.25518058]
[1724753580891,3.24939978,155.89,155.86,6.53897269]
[1724753582285,3.24939978,155.89,155.86,3.25518058]
[1724753582494,0.04249978,155.89,155.86,3.25518058]
[1724753582681,0.04249978,155.89,155.87,7.89]
[1724753582887,0.04249978,155.89,155.87,11.0972]
[1724753586389,3.24939978,155.89,155.87,11.0972]
[1724753586593,0.04249978,155.89,155.87,14.27429643]
[1724753586796,0.04249978,155.89,155.88,3.2071]
[1724753587594,0.04249978,155.89,155.87,12.3266]
[1724753587789,0.04249978,155.89,155.87,9.1194]
[1724753587991,0.04249978,155.89,155.88,3.2071]
[1724753588493,7.89,155.96,155.87,16.96985851]
[1724753588793,3.2062,155.92,155.9,7.89]
[1724753591101,0.04456307,155.93,155.89,0.042032]
[1724753591295,7.93456307,155.93,155.89,0.042032]
[1724753592091,0.04456307,155.93,155.89,0.042032]
[1724753593098,3.2066,155.91,155.89,0.042032]
[1724753593701,3.2067,155.9,155.89,0.042032]
[1724753595202,3.2065,155.91,155.89,7.932032]
[1724753607208,3.2067,155.9,155.89,0.042032]
[1724753609113,3.2077,155.85,155.82,1.2645]
[1724753609322,3.2077,155.85,155.82,13.7945]
[1724753609612,7.89,155.86,155.79,7.8489]
[1724753609808,7.89,155.86,155.79,4.64]
[1724753610210,3.2558613,155.84,155.81,0.0471834]
[1724753611516,3.2558613,155.84,155.82,7.89]
[1724753612206,3.2082,155.83,155.81,0.0471834]
[1724753612608,0.0478613,155.84,155.81,0.0471834]
[1724753612803,3.2558613,155.84,155.81,3.2556834]
[1724753613611,3.2558613,155.84,155.81,11.1456834]
[1724753614407,3.2558613,155.84,155.81,3.2556834]
[1724753614612,3.2558613,155.84,155.81,11.1456834]
[1724753614816,0.0478613,155.84,155.82,14.27652004]
[1724753615016,0.0478613,155.84,155.82,11.0982]
[1724753616108,3.2557613,155.84,155.81,3.2555834]
[1724753617213,3.2082,155.83,155.81,0.0471834]
[1724753618816,3.2558613,155.84,155.81,3.2555834]
[1724753619618,3.2558613,155.84,155.81,11.1455834]
[1724753620420,3.2558613,155.84,155.82,3.2083]
[1724753620821,0.0478613,155.84,155.81,7.9371834]
[1724753621023,0.0478613,155.84,155.81,11.1454834]
[1724753621223,7.89,155.83,155.81,0.0471834]
[1724753621818,3.2083,155.82,155.81,0.0471834]
[1724753623024,3.2082,155.83,155.81,0.0471834]
[1724753623413,7.9378613,155.84,155.81,0.0471834]
[1724753623813,3.2083,155.82,155.81,0.0471834]
[1724753624819,3.2082,155.83,155.81,0.0471834]
[1724753625826,3.2558613,155.84,155.81,3.2556834]
[1724753628929,3.2081,155.83,155.81,0.0471834]
[1724753629133,0.0478613,155.84,155.81,0.0471834]
[1724753630134,3.2082,155.83,155.81,0.0471834]
[1724753630732,0.0478613,155.84,155.82,7.89]
[1724753631034,0.0478613,155.84,155.82,11.16864828]
[1724753631528,0.0478613,155.84,155.82,14.37674828]
[1724753632331,0.0478613,155.84,155.83,3.2081]
[1724753632539,13.7115,155.92,155.83,7.89]
[1724753632738,13.7115,155.92,155.85,7.89]
[1724753633132,3.207,155.89,155.86,3.2073]
[1724753633437,13.7115,155.92,155.83,2.5198]
[1724753633629,0.044594,155.89,155.86,0.04576184]
[1724753633833,3.251594,155.89,155.86,0.04576184]
[1724753634229,0.044594,155.89,155.86,0.04576184]
[1724753634834,0.044594,155.89,155.88,7.89]
[1724753635639,0.044594,155.89,155.87,11.0972]
[1724753636140,0.044594,155.89,155.87,7.89]
[1724753636738,0.044594,155.89,155.88,7.89]
[1724753638340,3.2062,155.93,155.88,7.89]
[1724753639346,0.04059314,155.92,155.89,0.04761979]
[1724753640247,0.04059314,155.92,155.9,14.37933867]
[1724753640455,0.04059314,155.92,155.9,7.89]
[1724753641761,0.04059314,155.92,155.9,11.0966]
[1724753642049,0.04059314,155.92,155.91,11.10164983]
[1724753642255,0.04059314,155.92,155.91,7.89]
[1724753642746,0.04059314,155.92,155.91,14.22947442]
[1724753642952,3.2055,155.96,155.93,7.89]
[1724753643256,3.2052,155.97,155.93,11.0959]
[1724753643654,3.2052,155.97,155.93,14.2310563]
[1724753643858,3.24933169,155.97,155.93,14.27871134]
[1724753644056,3.24933169,155.97,155.95,7.89]
[1724753644247,0.04413169,155.97,155.95,7.89]
[1724753645360,0.04413169,155.97,155.95,11.0955]
[1724753645758,0.04413169,155.97,155.95,7.89]
[1724753646165,0.04413169,155.97,155.96,11.0954]
[1724753648662,0.04413169,155.97,155.96,3.2054]
[1724753652761,3.2045,156.01,155.97,3.2051]
[1724753652964,3.2045,156.01,155.98,7.89]
[1724753653765,3.24648593,156.01,155.98,7.93679146]
[1724753653965,3.2046,156.0,155.98,7.93679146]
[1724753656975,0.04198593,156.01,155.98,7.93679146]
[1724753657672,0.04198593,156.01,155.99,3.2046]
[1724753658472,0.04198593,156.01,156.0,7.89]
[1724753658674,0.04198593,156.01,156.0,11.0946]
[1724753661081,7.59171996,156.21,156.0,7.89]
[1724753661275,7.89,156.11,156.05,7.89]
[1724753661483,7.89,156.1,155.99,4.44]
[1724753661786,7.89,156.1,156.03,11.094]
[1724753662178,3.2034,156.06,156.05,0.04134]
[1724753662881,0.04664793,156.08,156.05,0.04134]
[1724753662882,3.2032,156.07,156.05,0.04134]
[1724753664583,3.2034,156.06,156.05,0.04134]
[1724753664793,11.0934,156.06,156.05,0.04134]
[1724753667483,3.2034,156.06,156.05,0.04134]
[1724753668185,3.24974793,156.08,156.05,3.24484]
[1724753668489,3.24974793,156.08,156.05,11.13484]
[1724753670791,3.2032,156.07,156.05,11.13494]
[1724753670987,3.2032,156.07,156.05,0.04134]
[1724753672187,3.2034,156.06,156.05,0.04134]
[1724753675588,0.04664793,156.08,156.05,0.04134]
[1724753675788,0.04664793,156.08,156.06,7.89]
[1724753677093,0.04664793,156.08,156.06,11.0932]
[1724753677388,0.04664793,156.08,156.06,7.89]
[1724753678389,0.04664793,156.08,156.07,3.2032]
[1724753678591,0.04664793,156.08,156.06,7.89]
[1724753678989,0.04664793,156.08,156.06,11.0933]
[1724753680696,0.04664793,156.08,156.07,3.2032]
[1724753682291,0.04664793,156.08,156.07,11.0932]
[1724753683097,4.42,156.15,156.07,7.89]
[1724753683297,9.5984,156.26,156.12,7.89]
[1724753683298,1.2352,156.2,156.12,7.89]
[1724753683497,3.2019,156.14,156.12,7.89]
[1724753684196,3.2019,156.14,156.11,0.04162641]
[1724753686190,3.2019,156.14,156.11,3.24382641]
[1724753686395,3.2019,156.14,156.12,7.89]
[1724753686795,3.2019,156.13,156.11,0.04162641]
[1724753686995,0.04636961,156.15,156.11,0.04162641]
[1724753687299,7.89,156.13,156.11,0.04162641]
[1724753687796,3.2021,156.12,156.11,0.04162641]
[1724753689095,7.89,156.13,156.01,3.18196609]
[1724753689310,1.3287,156.14,156.02,6.9134]
[1724753689311,7.89,156.08,156.02,6.9134]
[1724753689608,3.2034,156.06,156.02,10.1174]
[1724753689798,3.2034,156.06,156.02,18.0074]
[1724753690303,3.2034,156.06,156.03,3.2039]
[1724753690304,3.24994659,156.06,156.03,3.2039]
[1724753691300,0.04654659,156.06,156.03,11.0939]
[1724753694000,0.04654659,156.06,156.04,3.2037]
[1724753695203,0.04654659,156.06,156.03,11.0939]
[1724753696101,0.04654659,156.06,156.04,3.2037]
[1724753696396,0.04654659,156.06,156.02,10.15485226]
[1724753696397,0.04654659,156.06,156.05,7.89]
[1724753698504,0.04654659,156.06,156.03,7.89]
[1724753698806,0.04654659,156.06,156.03,11.0938]
[1724753700099,0.04654659,156.06,156.04,3.2037]
[1724753700401,0.04654659,156.06,156.03,7.89]
[1724753700703,0.04654659,156.06,156.04,3.2036]
[1724753700906,0.04654659,156.06,156.03,7.89]
[1724753701207,0.04654659,156.06,156.05,3.2036]
[1724753701808,0.04654659,156.06,156.02,12.36585226]
[1724753702007,0.04654659,156.06,156.02,16.78585226]
[1724753703407,3.25004659,156.06,156.03,3.204]
[1724753704802,0.04654659,156.06,156.03,3.204]
[1724753705006,0.04654659,156.06,156.03,7.89]
[1724753706106,0.04654659,156.06,156.04,3.2036]
[1724753707402,3.24994659,156.06,156.03,3.2039]
[1724753708113,0.04654659,156.06,156.02,1.28106858]
[1724753708315,7.89,156.05,156.02,0.04666858]
[1724753708907,3.2038,156.04,156.02,0.04666858]
[1724753709308,3.2036,156.05,156.02,0.04666858]
[1724753709507,3.2036,156.05,156.02,3.25076858]
[1724753709809,0.04654659,156.06,156.02,3.25076858]
[1724753710014,0.04654659,156.06,156.02,0.04666858]
[1724753711415,7.89,156.05,156.02,0.04666858]
[1724753711610,0.04654659,156.06,156.02,0.04666858]
[1724753711821,7.93654659,156.06,156.02,0.04666858]
[1724753712116,3.204,156.04,156.02,0.04666858]
[1724753713313,11.094,156.03,156.02,0.04666858]
[1724753714115,3.204,156.03,156.02,0.04666858]
[1724753715020,3.204,156.03,155.93,3.2059]
[1724753715021,7.89,156.03,155.93,3.2059]
[1724753715319,7.89,155.99,155.92,7.89]
[1724753715623,7.89,155.97,155.91,7.89]
[1724753715817,7.89,155.95,155.92,3.20230907]
[1724753716022,19.72,155.95,155.89,3.2068]
[1724753716222,19.76464117,155.95,155.92,0.04362977]
[1724753716419,19.72,155.93,155.92,0.04362977]
[1724753716618,22.926,155.93,155.92,0.04362977]
[1724753716928,19.72,155.93,155.82,3.8447]
[1724753717114,19.72,155.9,155.82,8.2647]
[1724753717415,3.2071,155.88,155.83,3.2079]
[1724753717623,3.2071,155.88,155.82,27.9847]
[1724753718012,0.04313939,155.87,155.83,0.04618291]
[1724753718926,3.25043939,155.87,155.83,3.25418291]
[1724753719312,0.04313939,155.87,155.83,3.25418291]
[1724753719714,0.04313939,155.87,155.83,0.04618291]
[1724753720223,0.04313939,155.87,155.85,3.2077]
[1724753721121,0.04313939,155.87,155.86,3.2075]
[1724753721924,19.72,155.95,155.88,3.2069]
[1724753722324,19.72,155.95,155.86,19.72]
[1724753722825,3.25004138,155.92,155.89,0.04713579]
[1724753725728,3.2065,155.91,155.89,0.04713579]
[1724753725927,0.04364138,155.92,155.89,0.04713579]
[1724753726428,3.2064,155.91,155.89,0.04713579]
[1724753726929,0.04364138,155.92,155.89,0.04713579]
[1724753727126,3.2066,155.91,155.89,0.04713579]
[1724753727327,0.04364138,155.92,155.89,0.04713579]
[1724753728322,3.2067,155.9,155.89,0.04713579]
[1724753728628,0.04364138,155.92,155.89,0.04713579]
[1724753730028,19.72,155.93,155.82,27.9847]
[1724753730029,3.2081,155.83,155.82,4.42]
[1724753730218,19.72,155.93,155.76,3.2095]
[1724753730219,19.72,155.88,155.76,22.89132223]
[1724753730423,4.42,155.87,155.76,19.72]
[1724753730623,3.2083,155.83,155.79,3.2089]
[1724753731022,19.72,155.88,155.76,22.9397614]
[1724753731327,0.04407891,155.83,155.79,0.0433081]
[1724753731529,0.04407891,155.83,155.79,3.7894081]
[1724753731828,0.04407891,155.83,155.79,0.0433081]
[1724753732228,19.76407891,155.83,155.79,0.0433081]
[1724753732432,3.2087,155.8,155.79,0.0433081]
[1724753734923,3.2087,155.81,155.79,0.0433081]
[1724753735426,19.76407891,155.83,155.79,0.0433081]
[1724753735821,0.04407891,155.83,155.79,0.0433081]
[1724753736224,3.2084,155.82,155.79,0.0433081]
[1724753736429,0.04407891,155.83,155.79,0.0433081]
[1724753737430,19.76407891,155.83,155.79,0.0433081]
[1724753737634,19.72,155.81,155.79,0.0433081]
[1724753738322,3.2087,155.8,155.79,0.0433081]
[1724753740932,3.2086,155.81,155.79,0.0433081]
[1724753742233,3.2083,155.82,155.79,0.0433081]
[1724753745730,0.04407891,155.83,155.79,0.0433081]
[1724753746435,0.04407891,155.83,155.8,3.2087]
[1724753746635,0.04407891,155.83,155.79,1.3216081]
[1724753747340,0.04407891,155.83,155.8,3.2087]
[1724753747530,0.04407891,155.83,155.79,1.3216081]
[1724753748337,0.04407891,155.83,155.81,3.2084]
[1724753751738,0.04407891,155.83,155.82,3.2083]
[1724753753333,1.2864,155.93,155.84,3.2078]
[1724753753334,19.72,155.91,155.84,3.2078]
[1724753753844,19.72,155.91,155.8,19.72]
[1724753753845,3.2074,155.87,155.83,3.208]
[1724753754029,3.2074,155.87,155.81,1.2137]
[1724753754231,3.2074,155.87,155.82,3.27437708]
[1724753754631,0.0448571,155.86,155.82,3.31737645]
[1724753754837,0.0448571,155.86,155.82,0.04299937]
[1724753755230,0.0448571,155.86,155.83,3.2081]
[1724753755438,0.0448571,155.86,155.83,3.27886912]
[1724753756038,0.0448571,155.86,155.83,3.2081]
[1724753759444,3.2523571,155.86,155.83,3.2081]
[1724753760043,3.2077,155.85,155.82,6.40344171]
[1724753760248,3.2077,155.85,155.82,0.04299937]
[1724753760249,19.72,155.85,155.82,0.04299937]
[1724753761047,3.2081,155.83,155.82,0.04299937]
[1724753763246,22.9281,155.83,155.82,0.04299937]
[1724753763442,3.2081,155.83,155.82,0.04299937]
[1724753765758,3.2089,155.8,155.75,2.4295]
[1724753765945,3.2089,155.8,155.75,6.8495]
[1724753766350,3.2089,155.8,155.75,2.4295]
[1724753766854,0.0470552,155.79,155.76,0.04335277]
[1724753767559,7.9370552,155.79,155.76,0.04335277]
[1724753768543,7.89,155.78,155.76,0.04335277]
[1724753769750,3.2092,155.78,155.76,0.04335277]
[1724753773860,3.2093,155.77,155.76,0.04335277]
[1724753774261,0.0470552,155.79,155.76,0.04335277]
[1724753774662,3.2092,155.78,155.76,0.04335277]
[1724753776165,3.2093,155.77,155.76,0.04335277]
[1724753776464,0.0470552,155.79,155.76,0.04335277]
[1724753776662,3.2093,155.78,155.76,0.04335277]
[1724753784266,3.2559552,155.79,155.76,0.04335277]
[1724753785270,0.0470552,155.79,155.76,0.04335277]
[1724753786272,3.2561552,155.79,155.76,3.25275277]
[1724753786471,0.0470552,155.79,155.76,0.04335277]
[1724753786866,19.73,155.77,155.64,3.71292217]
[1724753787071,19.73,155.74,155.65,1.3221]
[1724753787266,3.2105,155.72,155.68,3.2111]
[1724753787476,19.73,155.74,155.68,3.2111]
[1724753787870,3.2105,155.72,155.69,3.2517725]
[1724753788071,0.04510503,155.73,155.69,3.2517725]
[1724753788273,3.25540503,155.73,155.69,3.2517725]
[1724753788466,19.73,155.71,155.64,3.71292217]
[1724753788670,19.73,155.68,155.64,3.71292217]
[1724753788871,19.73,155.66,155.64,3.71292217]
[1724753789072,19.73,155.66,155.57,3.7503]
[1724753789073,24.15,155.66,155.57,3.7503]
[1724753789273,19.73,155.62,155.51,3.7503]
[1724753789475,0.04269946,155.58,155.55,0.04724216]
[1724753789672,39.46,155.57,155.43,4.9725312]
[1724753789874,3.28553458,155.57,155.43,24.7025312]
[1724753790178,19.73,155.48,155.43,4.9725312]
[1724753790370,19.73,155.45,155.43,4.9725312]
[1724753790571,3.2171,155.4,155.32,3.2186]
[1724753790777,0.0420588,155.38,155.34,0.04883985]
[1724753791075,4.82,155.47,155.32,3.25757669]
[1724753791076,19.73,155.42,155.32,3.25757669]
[1724753791275,19.73,155.42,155.31,19.73]
[1724753791477,0.04176312,155.38,155.34,0.04481438]
[1724753791872,19.73,155.48,155.37,19.73]
[1724753792072,24.71,155.46,155.35,1.2471]
[1724753792273,3.2164,155.43,155.35,1.2471]
[1724753792484,24.71,155.41,155.26,2.5264]
[1724753792674,24.71,155.41,155.29,24.71]
[1724753792979,0.0417867,155.37,155.33,0.04076698]
[1724753793172,0.0444785,155.37,155.33,0.04828518]
[1724753795783,3.218,155.35,155.33,0.04828518]
[1724753796175,0.0444785,155.37,155.33,0.04828518]
[1724753796380,0.0444785,155.37,155.24,3.7950365]
[1724753796381,4.82,155.36,155.24,3.7950365]
[1724753796577,24.71,155.33,155.24,3.7950365]
[1724753796785,24.71,155.35,155.25,24.71]
[1724753796979,24.71,155.35,155.24,3.7950365]
[1724753797276,3.2195,155.28,155.24,3.7950365]
[1724753797481,24.71,155.33,155.24,3.84031137]
[1724753797778,0.0462238,155.28,155.24,3.84031137]
[1724753797977,3.2657238,155.28,155.24,3.84031137]
[1724753798179,24.71,155.26,155.23,3.62040498]
[1724753798480,5.4,155.26,155.15,24.71]
[1724753798982,30.11,155.26,155.15,24.71]
[1724753799282,30.11,155.26,155.1,6.6544]
[1724753799479,0.0451121,155.22,155.19,0.04312]
[1724753799881,3.2209,155.21,155.19,0.04312]
[1724753800082,0.0451121,155.22,154.96,6.422]
[1724753800083,24.71,155.2,154.96,6.422]
[1724753800283,24.71,155.2,155.08,24.71]
[1724753800885,24.71,155.33,155.08,24.71]
[1724753800886,24.71,155.24,155.11,24.71]
[1724753801087,0.04411394,155.19,155.16,0.04390472]
[1724753801380,24.75863779,155.19,155.16,0.04643285]
[1724753801779,0.04863779,155.19,155.16,0.04643285]
[1724753804183,24.71,155.27,155.16,24.71]
[1724753804686,24.71,155.27,155.17,5.7]
[1724753805078,0.04550974,155.24,155.2,0.04757162]
[1724753805280,0.04822925,155.24,155.2,0.04944582]
[1724753805479,0.04822925,155.24,155.23,3.2205]
[1724753805786,0.04822925,155.24,155.2,0.04944582]
[1724753805987,3.219,155.3,155.2,0.04944582]
[1724753806190,24.71,155.31,155.21,24.71]
[1724753807182,0.04434751,155.28,155.24,3.26666371]
[1724753807383,0.04434751,155.28,155.24,8.96666371]
[1724753807587,0.04434751,155.28,155.24,5.74646371]
[1724753808184,0.04434751,155.28,155.24,8.96656371]
[1724753808381,0.04434751,155.28,155.24,3.26656371]
[1724753808580,24.71,155.34,155.24,30.45646371]
[1724753808885,24.71,155.34,155.24,33.58520579]
[1724753809086,24.71,155.34,155.24,30.41]
[1724753809286,3.218,155.35,155.24,33.56427391]
[1724753809487,24.71,155.36,155.24,33.56427391]
[1724753809791,0.04387333,155.32,155.28,0.04091368]
[1724753809979,0.04387333,155.32,155.3,3.2188]
[1724753810181,0.04387333,155.32,155.28,0.04091368]
[1724753810885,0.04387333,155.32,155.3,3.219]
[1724753811281,0.04387333,155.32,155.31,3.2188]
[1724753812488,0.04387333,155.32,155.28,0.04091368]
[1724753812684,0.04387333,155.32,155.29,5.7]
[1724753813085,0.04387333,155.32,155.28,3.26021368]
[1724753813384,0.04387333,155.32,155.29,5.7]
[1724753813589,0.04387333,155.32,155.29,8.9191]
[1724753814391,0.04387333,155.32,155.3,3.219]
[1724753814694,24.71,155.38,155.29,5.7]
[1724753814695,3.2178,155.36,155.29,5.7]
[1724753814897,24.71,155.38,155.29,5.7]
[1724753815192,24.71,155.38,155.3,3.219]
[1724753815393,24.71,155.38,155.29,5.7]
[1724753815594,24.71,155.41,155.31,3.2188]
[1724753815787,0.04830063,155.35,155.32,0.04349992]
[1724753816188,0.04830063,155.35,155.32,3.26209992]
[1724753816490,1.2097,155.36,155.32,0.04349992]
[1724753816682,24.71,155.43,155.32,0.04349992]
[1724753816884,24.71,155.43,155.3,24.71]
[1724753817094,24.71,155.43,155.32,24.71]
[1724753817692,0.04592311,155.39,155.36,3.26129055]
[1724753818093,0.04592311,155.39,155.36,0.04369055]
[1724753818299,0.04592311,155.39,155.36,24.75369055]
[1724753818601,24.71,155.47,155.36,24.71]
[1724753818897,3.2161,155.45,155.4,3.2168]
[1724753819498,0.04516423,155.44,155.43,3.2163]
[1724753819695,0.04695859,155.45,155.43,3.2163]